bitfinex/quotes_ETHUSD_20250213
["timestamp","ask_amount","ask_price","bid_price","bid_amount"]
[1739437361347,3.75783,2671.8,2671.3,3.74349]
[1739437361348,0.015,2671.8,2671.3,3.74349]
[1739437361524,0.015,2671.8,2671.7,3.74293]
[1739437361848,0.304,2671.8,2671.7,3.74293]
[1739437362048,0.304,2671.8,2671.5,3.74321]
[1739437362228,0.304,2671.8,2671.2,7.61541291]
[1739437362423,4.04687,2671.8,2671.2,3.87190291]
[1739437362620,3.74294,2671.7,2671.2,6.74362]
[1739437362823,0.304,2671.8,2671.5,3.74313]
[1739437363021,3.74238,2672.1,2671.6,3.74306]
[1739437363252,0.015,2672.0,2671.5,6.74309]
[1739437363452,0.015,2671.8,2671.3,3.74342]
[1739437363750,0.015,2671.8,2671.3,1.17817831]
[1739437363917,0.015,2671.8,2671.4,3.74322]
[1739437364245,4.03164,2672.0,2671.4,3.0]
[1739437364246,0.015,2671.7,2671.4,3.0]
[1739437364446,9.03218,2672.3,2671.3,1.17817831]
[1739437364647,0.289,2671.8,2671.7,3.74286]
[1739437365026,0.289,2671.8,2671.5,3.74314]
[1739437365222,0.289,2671.8,2671.6,3.74305]
[1739437365428,3.74198,2672.4,2671.9,3.74264]
[1739437365617,4.0312,2672.3,2671.7,3.74281]
[1739437365963,0.015,2672.0,2671.6,3.0]
[1739437366116,3.74287,2671.8,2671.3,3.7434]
[1739437366314,3.74287,2671.8,2671.3,4.99594431]
[1739437366524,0.015,2671.9,2671.4,3.0]
[1739437366724,0.015,2671.9,2671.3,4.99594431]
[1739437366930,0.015,2671.9,2671.4,3.74326]
[1739437367152,0.015,2671.9,2671.4,3.0]
[1739437367367,0.289,2672.3,2671.8,3.74265]
[1739437367552,0.289,2672.3,2671.8,3.74271]
[1739437367870,0.565,2672.2,2671.6,3.0]
[1739437368028,3.74266,2671.9,2671.6,3.0]
[1739437368363,3.74266,2671.9,2671.5,0.72525443]
[1739437369070,0.565,2672.2,2671.5,0.72525443]
[1739437369374,7.48541,2671.9,2671.5,0.72525443]
[1739437369529,0.015,2671.8,2671.5,0.72525443]
[1739437369730,0.015,2671.8,2671.4,3.0]
[1739437369938,0.015,2671.4,2670.8,5.00006309]
[1739437370342,3.74292,2671.8,2671.2,3.7435]
[1739437370673,3.75802,2671.7,2671.2,3.7435]
[1739437370832,0.015,2671.5,2671.1,6.74376]
[1739437371039,0.015,2671.6,2671.1,1.04876]
[1739437371250,0.015,2671.6,2671.1,6.74367]
[1739437371446,0.0075,2671.6,2671.3,3.74342]
[1739437371780,3.74265,2671.9,2671.3,3.74338]
[1739437372077,0.0075,2671.8,2671.4,3.74335]
[1739437372281,0.0075,2671.8,2671.6,3.74306]
[1739437372476,0.0075,2671.9,2671.4,3.74335]
[1739437372773,0.0075,2671.9,2671.6,3.74303]
[1739437372959,0.0075,2672.1,2671.4,0.454855]
[1739437373163,2.17109886,2672.7,2671.5,3.0]
[1739437373365,4.03119,2672.3,2671.7,3.74285]
[1739437373564,0.015,2672.2,2671.7,3.74285]
[1739437373747,0.304,2672.2,2671.7,4.791442]
[1739437374081,4.04625,2672.2,2671.7,1.048592]
[1739437374374,0.304,2672.2,2671.8,3.74277]
[1739437374960,0.304,2672.2,2671.7,1.048592]
[1739437375471,0.304,2672.2,2671.8,3.74271]
[1739437375781,4.04624,2672.2,2671.7,1.048592]
[1739437376021,3.74238,2672.1,2671.7,1.048592]
[1739437376172,3.74238,2672.1,2671.5,3.0]
[1739437376173,3.75759,2672.0,2671.5,3.0]
[1739437376669,0.289,2671.9,2671.5,6.74314]
[1739437376968,4.03171,2671.9,2671.5,3.0]
[1739437377190,4.03171,2671.9,2671.1,4.23076309]
[1739437377191,0.015,2671.8,2671.1,0.772]
[1739437377347,3.74315,2671.6,2671.1,4.967321]
[1739437377717,0.0075,2671.7,2671.2,3.74351]
[1739437378010,0.0075,2671.8,2671.7,3.74293]
[1739437378140,0.289,2671.9,2671.7,3.74293]
[1739437378349,0.304,2671.9,2671.8,3.74279]
[1739437378816,0.304,2671.9,2671.5,6.74311]
[1739437379091,4.04674,2671.9,2671.5,3.0]
[1739437379278,4.04674,2671.9,2671.4,3.74335]
[1739437379680,4.04674,2671.9,2671.4,3.74327]
[1739437379681,0.304,2671.9,2671.4,3.74327]
[1739437379884,0.304,2671.9,2671.2,3.0]
[1739437380063,0.304,2671.9,2671.4,3.74328]
[1739437380393,0.015,2671.8,2671.3,1.14542441]
[1739437380595,0.015,2671.8,2671.4,3.74328]
[1739437380760,0.015,2671.8,2671.5,3.74314]
[1739437381097,3.74209,2672.3,2671.7,3.74293]
[1739437381300,0.289,2672.0,2671.7,3.74285]
[1739437381459,0.289,2672.0,2671.7,3.74284]
[1739437381895,0.289,2672.0,2671.7,3.74293]
[1739437382095,0.289,2672.0,2671.7,3.74285]
[1739437382304,0.289,2672.0,2671.8,3.74269]
[1739437382603,0.289,2672.4,2672.2,3.74215]
[1739437383202,0.1443508,2672.7,2672.6,3.74167]
[1739437383384,0.1443508,2672.7,2672.3,4.23076309]
[1739437383385,0.1443508,2672.7,2672.4,3.03741444]
[1739437383703,3.8858808,2672.7,2672.1,7.57528]
[1739437383881,3.8858808,2672.7,2672.1,9.49817431]
[1739437384059,0.1443508,2672.7,2672.2,3.7422]
[1739437384258,0.1443508,2672.7,2672.6,3.74167]
[1739437384572,0.1443508,2672.7,2672.4,6.74185]
[1739437384800,0.1443508,2672.7,2672.4,3.0]
[1739437384998,0.1443508,2672.7,2672.3,3.74209]
[1739437385184,0.1443508,2672.7,2672.2,3.7421]
[1739437385502,0.1443508,2672.7,2672.2,5.04074674]
[1739437385695,0.1443508,2672.7,2672.3,3.0]
[1739437385897,0.015,2672.6,2672.3,3.0]
[1739437386077,0.015,2672.6,2672.3,6.74206]
[1739437386310,0.015,2672.6,2672.4,6.74186]
[1739437386510,0.015,2672.6,2672.3,3.74206]
[1739437386831,0.015,2672.6,2672.4,3.0]
[1739437387003,3.75668,2672.6,2672.3,0.88737067]
[1739437387330,0.015,2672.6,2672.1,7.57527]
[1739437387492,0.015,2672.6,2672.1,3.0]
[1739437387692,0.015,2672.6,2672.2,3.0]
[1739437387891,0.015,2672.4,2671.9,3.74255]
[1739437388086,0.015,2672.6,2671.9,3.74255]
[1739437388293,0.015,2672.4,2672.0,4.5817299]
[1739437388733,0.015,2672.4,2672.0,0.8392599]
[1739437388893,0.015,2672.4,2672.0,3.0]
[1739437389100,0.015,2672.4,2672.0,6.7425]
[1739437389288,0.015,2672.4,2672.1,3.74229]
[1739437389789,0.015,2672.4,2671.9,3.0]
[1739437390028,3.74218,2672.3,2671.8,3.60718113]
[1739437390333,0.55,2672.6,2671.9,3.74265]
[1739437390488,0.289,2672.5,2672.4,3.74187]
[1739437391115,0.0075,2672.6,2672.4,3.74187]
[1739437391320,0.289,2672.5,2672.4,7.34913113]
[1739437391523,0.1443508,2672.7,2672.6,6.74167]
[1739437391745,0.1443508,2672.7,2672.3,3.74198]
[1739437391905,3.74167,2672.6,2672.1,8.10628113]
[1739437392107,3.74167,2672.6,2672.1,7.34946113]
[1739437392333,3.74167,2672.6,2672.1,11.09174113]
[1739437392531,0.1443508,2672.7,2671.9,3.0]
[1739437392532,3.75718,2672.3,2671.9,3.0]
[1739437392730,3.75714,2672.3,2671.9,3.0]
[1739437393304,3.75714,2672.3,2671.8,3.7427]
[1739437393723,3.75714,2672.3,2671.6,6.74297]
[1739437393898,3.75714,2672.3,2671.8,3.74275]
[1739437394099,3.75714,2672.3,2671.7,4.92901492]
[1739437394308,0.015,2672.3,2671.8,3.0]
[1739437394630,0.015,2672.3,2671.8,6.74269]
[1739437394824,0.015,2672.3,2671.9,3.74264]
[1739437395012,3.7571,2672.3,2671.8,3.0]
[1739437395340,0.015,2672.3,2671.8,3.0]
[1739437395646,0.1443508,2672.7,2671.2,0.95728104]
[1739437395647,0.015,2672.5,2671.2,0.95728104]
[1739437395816,0.015,2671.8,2671.4,3.74331]
[1739437396018,0.289,2671.7,2671.5,6.74312]
[1739437396429,0.289,2671.7,2671.6,3.74307]
[1739437396743,0.289,2671.7,2671.6,4.491698]
[1739437397100,0.289,2671.7,2671.6,3.74307]
[1739437397336,5.29,2672.5,2672.0,3.74251]
[1739437397546,0.55,2672.6,2671.3,7.19877343]
[1739437397547,0.289,2672.1,2671.3,7.19877343]
[1739437397844,0.289,2672.1,2671.6,6.74295]
[1739437397999,0.289,2672.1,2671.6,4.048614]
[1739437398199,0.289,2672.1,2671.7,3.74291]
[1739437399343,0.289,2672.1,2671.6,4.048614]
[1739437399528,4.03142,2672.1,2671.6,4.048614]
[1739437399842,0.015,2672.1,2671.6,7.791584]
[1739437400038,3.8859508,2672.7,2671.7,4.61158104]
[1739437400339,0.289,2672.6,2672.5,3.74181]
[1739437400548,0.4333508,2672.7,2672.6,3.74167]
[1739437400696,0.1443508,2672.7,2672.6,3.74167]
[1739437400896,0.1443508,2672.7,2672.6,7.49001]
[1739437401559,0.1443508,2672.7,2672.6,8.29721]
[1739437406435,8e-07,2672.7,2672.6,8.29721]
[1739437406935,8e-07,2672.7,2672.6,7.74721]
[1739437407135,8e-07,2672.7,2672.6,8.48779817]
[1739437410001,0.005,2673.4,2673.3,3.74069]
[1739437410133,0.005,2673.4,2673.3,8.30103654]
[1739437410338,0.005,2673.4,2673.3,8.263641]
[1739437410682,0.005,2673.4,2673.3,8.44614509]
[1739437410837,0.005,2673.4,2673.3,8.263641]
[1739437411237,0.005,2673.4,2673.3,4.522951]
[1739437411475,0.005,2673.4,2673.3,3.0]
[1739437411678,0.005,2673.4,2673.3,6.74069]
[1739437412386,3.73852,2674.9,2674.4,3.73906]
[1739437412592,3.7389,2674.6,2674.0,4.51211]
[1739437412887,0.015,2674.7,2674.1,3.73947]
[1739437413088,3.73894,2674.6,2674.1,3.73947]
[1739437413291,0.015,2674.5,2674.1,3.73947]
[1739437413652,0.015,2674.5,2673.9,3.73973]
[1739437413850,0.015,2674.5,2674.1,3.73956]
[1739437414247,3.73873,2674.8,2674.2,3.73933]
[1739437414568,0.289,2674.7,2674.1,3.0]
[1739437414764,0.015,2674.6,2674.2,3.73943]
[1739437415791,0.015,2674.4,2673.9,3.751213]
[1739437415962,0.015,2674.4,2674.0,3.73969]
[1739437416152,0.015,2674.4,2674.1,3.0]
[1739437416354,0.304,2674.4,2674.1,3.0]
[1739437416878,0.304,2674.4,2673.9,3.751213]
[1739437417065,0.304,2674.4,2674.1,3.0]
[1739437417390,0.289,2674.4,2674.1,3.0]
[1739437417597,0.015,2674.3,2674.0,3.73961]
[1739437417892,0.015,2674.3,2673.8,7.34159102]
[1739437417893,0.015,2674.3,2673.8,10.34159102]
[1739437418091,0.015,2674.3,2673.8,3.73994]
[1739437418279,0.015,2674.3,2674.1,3.73946]
[1739437418595,0.289,2674.4,2674.1,3.73957]
[1739437418981,0.289,2674.4,2674.2,3.7393]
[1739437419180,0.289,2674.7,2674.5,3.73892]
[1739437419548,0.015,2675.0,2674.6,3.73887]
[1739437419777,0.289,2674.9,2674.6,3.73877]
[1739437419987,0.289,2674.9,2674.7,0.03738343]
[1739437420396,4.02756,2674.9,2674.4,3.73906]
[1739437421399,0.289,2674.9,2674.3,0.03738406]
[1739437421602,0.289,2674.9,2674.4,3.73915]
[1739437421804,4.02621,2675.1,2674.5,6.73891]
[1739437421979,0.015,2675.0,2674.5,3.0]
[1739437422381,0.015,2675.0,2674.5,6.739]
[1739437422565,3.75332,2675.0,2674.5,6.739]
[1739437422765,3.73848,2674.9,2674.5,3.0]
[1739437423012,0.015,2675.0,2674.5,6.73899]
[1739437423192,0.0075,2674.7,2674.2,0.75958367]
[1739437423514,3.73938,2674.3,2673.6,0.7725]
[1739437423739,3.73944,2674.2,2673.7,3.74006]
[1739437424003,0.015,2674.4,2674.1,1.0]
[1739437424407,0.0075,2674.4,2674.2,3.73934]
[1739437424577,0.288,2675.1,2674.1,4.73947]
[1739437424901,3.73891,2674.6,2674.1,4.73947]
[1739437425104,0.015,2674.7,2674.2,3.7394]
[1739437425410,0.015,2674.7,2674.1,4.73947]
[1739437425411,3.73901,2674.5,2674.1,1.0]
[1739437425618,3.75378,2674.7,2674.1,4.73954]
[1739437425912,0.015,2674.8,2674.6,3.73887]
[1739437426081,0.288,2674.7,2674.4,3.73907]
[1739437426411,0.288,2674.7,2674.5,3.73901]
[1739437426593,0.288,2674.7,2674.4,3.73907]
[1739437427399,0.015,2674.8,2674.4,3.73907]
[1739437427611,0.288,2674.7,2674.6,3.73879]
[1739437428121,0.288,2674.7,2674.6,3.73887]
[1739437428882,0.288,2674.7,2674.5,4.54958]
[1739437429082,0.288,2674.7,2674.4,3.0]
[1739437429607,0.288,2674.7,2674.3,3.73919]
[1739437429924,4.02674,2674.7,2674.2,4.5296]
[1739437430093,0.288,2674.7,2674.1,1.0]
[1739437430298,3.73913,2674.5,2674.1,1.0]
[1739437430630,3.73887,2674.6,2674.1,1.0]
[1739437430631,3.73887,2674.6,2674.1,4.73953]
[1739437430783,4.02678,2674.7,2674.2,3.73942]
[1739437430984,0.288,2674.7,2674.3,3.73922]
[1739437431185,0.288,2674.7,2674.4,3.73915]
[1739437431521,0.288,2674.7,2674.3,4.587094]
[1739437431730,0.288,2674.7,2674.4,3.73913]
[1739437431884,4.02675,2674.7,2674.3,0.847864]
[1739437432081,4.02675,2674.7,2674.2,3.73934]
[1739437432307,0.288,2674.7,2674.3,3.73919]
[1739437432620,0.288,2674.7,2674.2,3.73934]
[1739437432824,4.02683,2674.7,2674.2,3.73934]
[1739437433022,7.76567,2674.7,2674.2,3.73934]
[1739437433325,0.288,2674.7,2674.1,1.0]
[1739437433483,0.288,2674.7,2674.3,3.73929]
[1739437433682,0.288,2674.7,2674.4,3.73913]
[1739437434022,4.02674,2674.7,2674.2,6.7393]
[1739437434201,3.73888,2674.6,2674.2,3.0]
[1739437434389,4.02674,2674.7,2674.2,3.0]
[1739437434585,3.73889,2674.6,2674.2,3.0]
[1739437434791,4.02674,2674.7,2674.2,6.73929]
[1739437435221,4.02674,2674.7,2674.1,4.73949]
[1739437435222,3.73903,2674.5,2674.1,1.0]
[1739437435624,0.015,2674.6,2674.1,1.0]
[1739437435925,4.30389,2674.6,2674.1,1.0]
[1739437436086,0.015,2674.3,2674.1,1.0]
[1739437437107,0.015,2674.4,2674.1,1.0]
[1739437437304,0.015,2674.4,2674.1,4.73954]
[1739437437512,0.288,2674.3,2674.1,1.0]
[1739437437987,4.02729,2674.3,2674.1,1.0]
[1739437438392,3.73943,2674.2,2674.1,1.0]
[1739437438613,0.288,2674.3,2674.1,1.0]
[1739437439434,0.288,2674.3,2674.1,4.73954]
[1739437439626,0.288,2674.3,2674.1,4.0]
[1739437440192,0.288,2674.4,2674.1,1.0]
[1739437440402,0.288,2674.4,2674.2,3.7393]
[1739437440630,0.288,2674.4,2674.2,7.47866]
[1739437440795,0.288,2674.4,2674.2,3.7393]
[1739437441403,0.288,2674.4,2674.3,3.73929]
[1739437441604,0.97955149,2675.4,2674.3,0.96808792]
[1739437441825,3.7386,2674.8,2674.3,6.73928]
[1739437442232,3.73866,2674.8,2674.3,10.47851]
[1739437442434,0.015,2674.9,2674.3,6.73923]
[1739437442589,0.015,2674.9,2674.5,3.73897]
[1739437442795,0.288,2674.8,2674.6,3.73877]
[1739437444124,0.288,2674.8,2674.5,3.0]
[1739437444337,0.288,2674.8,2674.5,6.73899]
[1739437444637,0.288,2674.8,2674.4,3.0]
[1739437444931,0.288,2674.8,2674.5,3.739]
[1739437445147,0.288,2674.8,2674.2,3.0]
[1739437445443,0.288,2674.8,2674.6,3.73881]
[1739437445644,0.288,2674.8,2674.2,8.09038241]
[1739437445853,0.288,2674.8,2674.5,3.0]
[1739437446045,0.288,2674.8,2674.3,3.0]
[1739437446046,4.02664,2674.8,2674.3,3.0]
[1739437446208,0.288,2674.8,2674.5,3.0]
[1739437446609,0.288,2674.8,2674.7,0.7792]
[1739437446836,0.288,2674.8,2674.7,4.51793]
[1739437447211,0.1443508,2675.4,2674.5,3.0]
[1739437447212,4.02635,2675.0,2674.5,3.0]
[1739437447549,3.75353,2674.9,2674.3,3.73925]
[1739437447752,0.015,2674.8,2674.1,1.0]
[1739437448047,0.015,2674.4,2674.1,1.0]
[1739437448218,0.015,2674.4,2673.9,3.73982]
[1739437448734,0.015,2674.4,2674.0,3.0]
[1739437449122,4.2885,2674.9,2673.6,7.48035]
[1739437449123,0.015,2674.1,2673.6,7.48035]
[1739437449326,0.015,2674.1,2673.7,3.0]
[1739437449522,0.015,2673.9,2673.3,0.7734]
[1739437449723,0.015,2673.7,2673.2,3.74071]
[1739437449939,0.288,2673.6,2673.3,3.0]
[1739437450258,0.288,2673.6,2673.5,3.74041]
[1739437450583,0.288,2673.6,2673.2,3.0]
[1739437450758,3.74063,2673.4,2672.8,7.3423972]
[1739437450960,0.015,2673.3,2672.7,4.56912]
[1739437451287,3.75569,2673.3,2672.7,3.74152]
[1739437451458,0.015,2673.3,2672.7,3.74152]
[1739437451658,0.288,2673.2,2672.8,3.74139]
[1739437451956,0.288,2673.2,2673.0,3.74101]
[1739437452623,0.288,2673.2,2673.1,3.74097]
[1739437452824,3.75522,2673.7,2673.1,3.74097]
[1739437453026,0.015,2673.6,2673.5,3.74041]
[1739437453227,0.303,2673.6,2673.5,3.74041]
[1739437454240,0.303,2673.6,2673.0,4.93344681]
[1739437454441,4.04338,2673.6,2673.0,4.55931]
[1739437454649,4.04338,2673.6,2672.8,3.74129]
[1739437454650,4.04333,2673.6,2672.8,3.74129]
[1739437454853,0.015,2673.5,2672.9,3.0]
[1739437455024,0.015,2673.5,2673.2,3.74083]
[1739437455224,0.288,2673.6,2673.2,3.74083]
[1739437455440,0.288,2673.6,2673.3,3.74061]
[1739437455752,0.288,2673.6,2673.5,3.74041]
[1739437455956,8.29,2674.7,2673.3,3.74069]
[1739437456127,0.565,2674.3,2673.8,3.73993]
[1739437456462,0.288,2674.2,2673.4,6.74051]
[1739437456677,0.288,2674.2,2673.7,0.8045]
[1739437456872,0.015,2674.8,2673.7,0.8045]
[1739437457083,3.754,2674.6,2674.0,3.73968]
[1739437457437,3.754,2674.6,2674.0,3.0]
[1739437457656,0.015,2674.5,2674.2,3.73943]
[1739437458070,0.015,2674.5,2674.0,3.73968]
[1739437458071,0.015,2674.5,2674.0,3.73962]
[1739437458557,0.015,2674.6,2674.2,3.7393]
[1739437458765,0.015,2674.6,2673.7,7.54459]
[1739437458766,3.7391,2674.5,2673.9,3.0]
[1739437459116,0.288,2674.4,2674.1,3.73948]
[1739437459469,0.288,2674.4,2673.9,3.73981]
[1739437459673,0.288,2674.4,2673.9,3.73976]
[1739437459913,0.288,2674.4,2673.9,3.0]
[1739437460050,0.015,2674.3,2673.9,3.73975]
[1739437460249,0.015,2674.3,2673.9,3.0]
[1739437460483,3.7543,2674.3,2673.9,3.0]
[1739437460684,0.015,2674.3,2674.0,3.73962]
[1739437460986,0.015,2674.3,2674.0,3.7396]
[1739437461192,0.015,2674.3,2673.9,6.73978]
[1739437461365,3.75429,2674.3,2673.7,4.54461]
[1739437461569,3.75429,2674.3,2673.9,3.0]
[1739437461768,0.015,2674.3,2673.9,3.0]
[1739437462092,5.29,2674.9,2674.4,3.0]
[1739437462249,5.29,2674.9,2674.2,3.73942]
[1739437462453,0.015,2674.8,2674.0,0.7843]
[1739437462656,0.015,2674.5,2674.0,3.7397]
[1739437462951,0.015,2674.5,2674.1,3.73954]
[1739437463288,0.015,2674.7,2673.8,3.0]
[1739437463493,0.015,2674.7,2674.3,3.73924]
[1739437463696,0.015,2674.7,2674.3,3.73921]
[1739437463989,0.015,2674.5,2674.1,3.7395]
[1739437464163,0.015,2674.5,2674.2,3.73943]
[1739437464366,0.015,2674.5,2674.1,3.7395]
[1739437464562,0.015,2674.7,2674.1,3.73948]
[1739437464776,0.015,2674.7,2674.4,3.73905]
[1739437464982,0.015,2674.7,2674.4,3.73915]
[1739437465191,0.015,2674.7,2674.2,3.73936]
[1739437465492,0.288,2674.6,2674.4,3.73915]
[1739437465675,5.29,2674.9,2674.8,3.73859]
[1739437465862,0.288,2674.9,2674.8,3.7385]
[1739437466189,3.7379,2675.3,2674.5,0.8118]
[1739437466190,0.015,2675.3,2674.9,3.73836]
[1739437466368,0.303,2675.0,2674.9,3.73836]
[1739437466557,0.303,2675.0,2674.8,3.73858]
[1739437466757,0.015,2674.9,2674.5,0.8118]
[1739437466953,3.73859,2674.8,2674.2,3.73938]
[1739437467153,3.75352,2674.9,2674.3,3.0]
[1739437467353,0.015,2674.6,2674.3,3.0]
[1739437467677,0.015,2674.6,2674.1,3.73949]
[1739437467883,3.75396,2674.6,2674.1,3.73949]
[1739437468393,0.015,2674.4,2674.1,3.0]
[1739437468692,0.015,2674.4,2673.8,4.55266]
[1739437468693,0.288,2674.3,2673.8,0.8127]
[1739437468892,0.288,2674.3,2674.0,3.0]
[1739437469071,0.288,2674.3,2674.2,3.73943]
[1739437469454,0.015,2674.9,2674.0,3.0]
[1739437469656,0.015,2674.9,2674.3,3.73922]
[1739437469898,0.015,2674.7,2674.4,3.73905]
[1739437470258,3.75374,2674.7,2674.2,3.73943]
[1739437470479,3.75374,2674.7,2674.2,3.0]
[1739437470653,3.75423,2674.4,2673.9,3.73984]
[1739437470857,0.015,2674.4,2674.1,3.0]
[1739437471095,0.015,2674.4,2674.0,3.0]
[1739437471288,0.015,2674.4,2674.3,3.73929]
[1739437471481,3.73874,2674.7,2674.2,3.73941]
[1739437471899,3.73901,2674.5,2674.1,3.73951]
[1739437472099,3.75395,2674.6,2674.2,0.8098]
[1739437472696,0.288,2675.2,2674.7,3.73873]
[1739437472901,4.02615,2675.2,2674.7,3.73873]
[1739437473273,0.288,2675.2,2674.6,3.0]
[1739437473470,0.288,2675.2,2674.6,3.8098]
[1739437473663,0.288,2675.2,2674.8,3.73852]
[1739437474261,7.4766,2675.1,2674.6,3.8098]
[1739437474463,3.7383,2675.1,2674.6,7.54867]
[1739437474800,4.0263,2675.1,2674.7,3.73872]
[1739437475097,0.288,2675.1,2674.8,3.73851]
[1739437475396,0.288,2675.2,2674.8,3.73851]
[1739437475574,0.288,2675.2,2675.0,3.73829]
[1739437475773,0.288,2675.2,2675.1,3.73817]
[1739437476096,0.288,2675.2,2674.7,7.33875919]
[1739437476097,0.288,2675.2,2674.9,3.0]
[1739437476802,0.288,2675.2,2675.1,3.73817]
[1739437477008,0.1443508,2675.4,2675.3,3.73789]
[1739437477804,0.1443508,2675.4,2675.3,6.73789]
[1739437479271,0.1443508,2675.4,2675.3,3.0]
[1739437480157,0.1443508,2675.4,2675.0,4.40990919]
[1739437480311,3.8821408,2675.4,2674.9,3.73845]
[1739437480508,3.73813,2675.2,2674.7,3.73866]
[1739437480808,3.75302,2675.3,2674.7,4.486418]
[1739437481119,3.73806,2675.2,2674.7,4.486418]
[1739437481339,0.565,2675.3,2674.6,0.8098]
[1739437481509,0.015,2675.2,2674.4,4.40950919]
[1739437481710,0.015,2675.0,2674.5,3.0]
[1739437481910,0.015,2675.0,2674.8,3.0]
[1739437482239,0.1443508,2675.4,2675.3,6.73789]
[1739437482523,0.1443508,2675.4,2675.3,4.411679]
[1739437482734,0.1443508,2675.4,2675.3,7.411679]
[1739437483336,0.1443508,2675.4,2675.3,8.173679]
[1739437487841,8e-07,2675.4,2675.3,8.173679]
[1739437491246,8e-07,2675.4,2675.3,7.411679]
[1739437492335,8e-07,2675.4,2675.3,3.0]
[1739437493049,3.7529,2675.3,2674.8,3.73857]
[1739437493349,0.015,2675.3,2674.9,3.0]
[1739437493642,0.015,2675.3,2675.1,3.73809]
[1739437494158,0.58903828,2678.4,2675.5,0.7609]
[1739437494307,0.58903828,2678.4,2676.3,3.60010919]
[1739437494308,3.73516,2677.3,2676.3,3.60010919]
[1739437494510,5.70010919,2677.4,2676.0,3.60010919]
[1739437494717,3.73658,2676.3,2675.5,4.49367]
[1739437494916,4.02598,2676.7,2675.3,3.92871625]
[1739437494917,0.0075,2676.0,2675.3,3.92871625]
[1739437495152,0.015,2676.0,2675.0,3.60010919]
[1739437495322,3.73777,2675.4,2674.8,3.7385]
[1739437495508,0.015,2675.3,2674.8,7.47698]
[1739437495709,0.015,2675.3,2674.9,3.73833]
[1739437496229,0.015,2675.3,2675.1,3.73815]
[1739437496416,0.0075,2675.3,2675.1,3.73815]
[1739437496617,0.0075,2675.3,2675.2,3.73803]
[1739437497019,0.291,2675.6,2675.5,3.73756]
[1739437497220,0.292,2676.3,2675.8,3.73718]
[1739437497547,3.73664,2676.2,2675.5,6.73759]
[1739437497716,0.015,2676.1,2675.5,6.73759]
[1739437498149,0.0075,2675.9,2675.6,3.73745]
[1739437498949,0.0075,2675.9,2675.5,6.73751]
[1739437499252,0.0075,2675.9,2675.7,3.73723]
[1739437499416,0.0075,2675.9,2675.8,3.7372]
[1739437500360,0.0075,2675.9,2675.6,3.73746]
[1739437500361,0.015,2675.9,2675.3,3.60010919]
[1739437500523,0.015,2675.8,2675.2,3.73792]
[1739437500856,0.015,2675.8,2675.3,3.0]
[1739437501050,0.015,2675.8,2675.4,3.73764]
[1739437501254,0.015,2675.8,2675.4,3.73762]
[1739437501476,0.015,2675.8,2675.3,6.73788]
[1739437501674,0.015,2675.8,2675.3,6.73781]
[1739437501883,0.015,2675.8,2675.0,3.60010919]
[1739437502042,0.015,2675.8,2674.7,3.73863]
[1739437502043,0.0075,2675.3,2674.7,3.73863]
[1739437502237,0.0075,2675.3,2675.0,3.73825]
[1739437502473,0.0075,2675.3,2674.7,3.373863]
[1739437502474,0.0075,2675.3,2675.2,3.73803]
[1739437502651,5.29,2675.8,2675.3,3.73786]
[1739437502855,5.29,2675.8,2675.7,3.73733]
[1739437502856,0.015,2675.8,2675.7,3.73733]
[1739437503059,0.0075,2675.8,2675.6,3.73746]
[1739437503243,0.291,2675.7,2675.6,3.73746]
[1739437504547,0.291,2675.7,2675.6,6.73746]
[1739437504948,0.291,2675.7,2675.6,7.784967]
[1739437505143,0.015,2676.2,2675.9,3.73703]
[1739437505383,5.29,2676.4,2675.9,3.73703]
[1739437505384,0.291,2676.4,2676.1,6.73678]
[1739437505690,0.291,2676.4,2676.3,3.7365]
[1739437506049,0.306,2676.4,2676.3,3.7365]
[1739437506387,0.306,2676.4,2676.2,6.73664]
[1739437506388,0.0075,2676.3,2676.2,6.73664]
[1739437506758,0.55,2676.8,2676.6,3.73602]
[1739437506958,0.84,2676.8,2676.2,6.59410198]
[1739437507158,0.015,2676.7,2676.2,6.59409198]
[1739437507383,0.015,2676.7,2676.5,3.73619]
[1739437507581,0.0075,2676.7,2676.6,3.73608]
[1739437507895,0.55,2676.8,2676.7,3.73594]
[1739437508095,0.55,2676.8,2676.6,3.73608]
[1739437508253,0.55,2676.8,2676.7,3.73594]
[1739437509198,0.55,2676.8,2676.7,3.0]
[1739437509363,0.5575,2676.8,2676.7,3.0]
[1739437509692,0.0075,2676.7,2676.4,3.73628]
[1739437509897,0.0075,2676.7,2676.6,3.73608]
[1739437510093,0.0075,2676.7,2676.4,3.73626]
[1739437510298,0.015,2676.7,2676.2,6.73664]
[1739437510486,0.015,2676.7,2676.6,6.73608]